fUSD/lending_fUSD_20240109
["ID","MTS","AMOUNT","RATE_DAILY","PERIOD"]
[310964172,1704835998334,-575.24,0.00041506,30]
[310964173,1704835998344,-1208.62,0.00041506,30]
[310964174,1704835998353,-500.0,0.00041506,30]
[310964175,1704835998364,-500.0,0.00041506,30]
[310964176,1704835998373,-500.0,0.00041506,30]
[310964177,1704835998382,-500.0,0.00041506,30]
[310964178,1704835998392,-840.42,0.00041506,30]
[310964179,1704835998402,-442.62,0.00041506,30]
[310964180,1704835998411,-500.0,0.00041506,30]
[310964181,1704835998425,-20052.88,0.00041506,30]
[310964182,1704835998435,-500.0,0.00041506,30]
[310964183,1704835998446,-1154.2,0.00041506,30]
[310964184,1704835998455,-500.0,0.00041506,30]
[310964185,1704835998465,-3280.13,0.00041506,30]
[310964186,1704835998475,-1336.18,0.00041506,30]
[310964187,1704835998485,-3059.66,0.00041506,30]
[310964188,1704835998494,-500.0,0.00041506,30]
[310964189,1704835998504,-808.78,0.00041506,30]
[310964190,1704835998514,-5796.52,0.00041506,30]
[310964191,1704835998524,-595.48,0.00041506,30]
[310964192,1704835998535,-772.79,0.00041506,30]
[310964193,1704835998545,-1773.57,0.00041506,30]
[310964194,1704835998556,-500.0,0.00041506,30]
[310964195,1704835998566,-1436.73,0.00041506,30]
[310964196,1704835998576,-1274.83,0.00041506,30]
[310964197,1704835998586,-500.0,0.00041506,30]
[310964198,1704835998596,-823.79,0.00041506,30]
[310964199,1704835998606,-500.0,0.00041506,30]
[310964200,1704835998616,-767.78,0.00041506,30]
[310964201,1704835998627,-500.0,0.00041506,30]
[310964202,1704835998638,-500.0,0.00041506,30]
[310964203,1704835998648,-924.78,0.00041506,30]
[310964204,1704835998658,-1944.68,0.00041506,30]
[310964205,1704835998671,-1764.13,0.00041506,30]
[310964206,1704835998681,-10402.25,0.00041506,30]
[310964207,1704835998690,-500.0,0.00041506,30]
[310964208,1704835998700,-500.0,0.00041506,30]
[310964209,1704835998710,-4303.2,0.00041506,30]
[310964210,1704835998720,-4288.57,0.00041506,30]
[310964211,1704835998730,-7059.7,0.00041506,30]
[310964212,1704835998739,-6327.7,0.00041506,30]
[310964213,1704835998749,-1629.67,0.00041506,30]
[310964214,1704835998757,-2082.36,0.00041506,30]
[310964215,1704835998767,-500.0,0.00041506,30]
[310964216,1704835998777,-699.1,0.00041506,30]
[310964217,1704835998787,-737.62,0.00041506,30]
[310964218,1704835998797,-961.05,0.00041506,30]
[310964219,1704835998807,-151.0,0.00041506,14]
[310964220,1704835998816,-190.450912,0.00041506,14]
[310964221,1704835998826,-190.450912,0.00041506,14]
[310964222,1704835998836,-8750.0,0.0004155,5]
[310964223,1704835998845,-1000.0,0.00041584,15]
[310964224,1704835998855,-500.0,0.00041589,30]
[310964225,1704835998864,-500.0,0.00041589,30]
[310964226,1704835998875,-500.0,0.00041589,30]
[310964227,1704835998884,-500.0,0.00041589,30]
[310964228,1704835998893,-267.86597054,0.00041589,30]
[310964229,1704835998903,-500.0,0.00041589,30]
[310964230,1704835998913,-519.07,0.00041589,30]
[310964231,1704835998928,-256.80965084,0.00041589,30]
[310964232,1704835998939,-500.0,0.00041589,30]
[310964233,1704835998949,-500.0,0.00041589,30]
[310964234,1704835998959,-500.0,0.00041589,30]
[310964235,1704835998968,-500.0,0.00041589,30]
[310964236,1704835998978,-500.0,0.00041589,30]
[310964237,1704835998988,-1003.07,0.00041589,6]
[310964238,1704835998998,-500.0,0.00041589,30]
[310964239,1704835999008,-500.0,0.00041589,30]
[310964240,1704835999018,-500.0,0.00041589,30]
[310964241,1704835999029,-599.12,0.00041589,30]
[310964242,1704835999039,-500.0,0.00041589,30]
[310964243,1704835999050,-323.34883746,0.00041589,30]
[310964244,1704835999061,-500.0,0.00041589,30]
[310964245,1704835999072,-870.95,0.00041589,30]
[310964246,1704835999082,-774.16,0.00041589,30]
[310964247,1704835999093,-500.0,0.00041589,30]
[310964248,1704835999103,-500.0,0.00041589,2]
[310964249,1704835999114,-628.44,0.00041589,30]
[310964250,1704835999124,-500.0,0.00041589,30]
[310964251,1704835999135,-500.0,0.00041589,30]
[310964252,1704835999145,-583.93,0.00041589,30]
[310964253,1704835999155,-500.0,0.00041589,30]
[310964254,1704835999164,-664.43,0.00041589,30]
[310964255,1704835999177,-642.11,0.00041589,30]
[310964256,1704835999186,-1006.44,0.00041589,30]
[310964257,1704835999196,-500.0,0.00041589,30]
[310964258,1704835999206,-785.15,0.00041589,30]
[310964259,1704835999216,-500.0,0.00041589,30]
[310964261,1704835999226,-619.73743504,0.00041589,30]
[310964262,1704835999236,-500.0,0.00041589,30]
[310964263,1704835999246,-500.0,0.00041589,30]
[310964264,1704835999256,-500.0,0.00041589,30]
[310964265,1704835999266,-521.93282943,0.00041589,30]
[310964267,1704835999276,-647.85,0.00041589,30]
[310964268,1704835999286,-500.0,0.00041589,30]
[310964269,1704835999296,-1176.3,0.00041589,30]
[310964270,1704835999306,-892.9,0.00041589,30]
[310964271,1704835999315,-500.0,0.00041589,30]
[310964272,1704835999325,-500.0,0.00041589,30]
[310964273,1704835999336,-500.0,0.00041589,30]
[310964274,1704835999345,-500.0,0.00041589,30]
[310964275,1704835999356,-875.0,0.00041589,30]
[310964276,1704835999366,-500.0,0.00041589,30]
[310964277,1704835999375,-500.0,0.00041589,30]
[310964278,1704835999385,-1021.0,0.00041589,30]
[310964279,1704835999395,-500.0,0.00041589,30]
[310964280,1704835999404,-924.33,0.00041589,30]
[310964281,1704835999415,-500.0,0.00041589,30]
[310964282,1704835999427,-552.38,0.00041589,30]
[310964283,1704835999436,-1079.22,0.00041589,30]
[310964284,1704835999447,-500.0,0.00041589,30]
[310964285,1704835999457,-500.0,0.00041589,30]
[310964286,1704835999466,-500.0,0.00041589,30]
[310964287,1704835999477,-500.0,0.00041589,30]
[310964288,1704835999485,-749.02,0.00041589,30]
[310964289,1704835999495,-500.0,0.00041589,30]
[310964290,1704835999504,-500.0,0.00041589,30]
[310964291,1704835999514,-500.0,0.00041589,30]
[310964292,1704835999523,-500.0,0.00041589,30]
[310964293,1704835999533,-507.33,0.00041589,30]
[310964294,1704835999543,-500.0,0.00041589,30]
[310964295,1704835999552,-500.0,0.00041589,30]
[310964296,1704835999562,-500.0,0.00041589,30]
[310964297,1704835999572,-500.0,0.00041589,30]
[310964298,1704835999582,-500.0,0.00041589,30]
[310964299,1704835999592,-556.06,0.00041589,30]
[310964300,1704835999601,-500.0,0.00041589,30]
[310964301,1704835999610,-500.0,0.00041589,30]
[310964302,1704835999620,-381.71837497,0.00041589,30]
[310964303,1704835999629,-544.95,0.00041589,30]
[310964304,1704835999639,-500.0,0.00041589,30]
[310964305,1704835999648,-500.0,0.00041589,30]
[310964306,1704835999658,-184.06293995,0.00041589,30]
[310964307,1704835999669,-889.52,0.00041589,30]
[310964308,1704835999678,-643.58,0.00041589,30]
[310964309,1704835999688,-857.15,0.00041589,30]
[310964310,1704835999697,-549.07,0.00041589,30]
[310964311,1704835999706,-500.0,0.00041589,30]
[310964312,1704835999715,-674.98,0.00041589,30]
[310964313,1704835999724,-500.0,0.00041589,30]
[310964314,1704835999732,-879.09,0.00041589,30]
[310964315,1704835999741,-500.0,0.00041589,30]
[310964316,1704835999750,-525.43,0.00041589,30]
[310964317,1704835999760,-740.92,0.00041589,30]
[310964318,1704835999770,-500.0,0.00041589,30]
[310964319,1704835999779,-500.0,0.00041589,30]
[310964320,1704835999788,-894.54,0.00041589,30]
[310964321,1704835999797,-500.0,0.00041589,30]
[310964322,1704835999807,-1210.61,0.00041589,30]
[310964323,1704835999817,-500.0,0.00041589,30]
[310964324,1704835999826,-1262.57,0.00041589,30]
[310964325,1704835999835,-500.0,0.00041589,30]
[310964326,1704835999844,-767.71,0.00041589,30]
[310964327,1704835999854,-571.45,0.00041589,30]
[310964328,1704835999864,-500.0,0.00041589,30]
[310964329,1704835999875,-500.0,0.00041589,30]
[310964330,1704835999884,-1000.0,0.00041589,30]
[310964331,1704835999893,-500.0,0.00041589,30]
[310964332,1704835999902,-1012.62,0.00041589,30]
[310964333,1704835999912,-568.08,0.00041589,30]
[310964334,1704835999925,-500.0,0.00041589,30]
[310964335,1704835999934,-1247.69,0.00041589,30]
[310964336,1704835999944,-500.0,0.00041589,30]
[310964337,1704835999953,-504.29,0.00041589,30]
[310964338,1704835999962,-744.29,0.00041589,30]
[310964339,1704835999971,-500.0,0.00041589,30]
[310964340,1704835999981,-500.0,0.00041589,30]
[310964341,1704835999990,-1071.67,0.00041589,30]
[310964342,1704835999999,-500.0,0.00041589,30]
[310964343,1704836000008,-1041.65,0.00041589,30]
[310964344,1704836000017,-597.48,0.00041589,30]
[310964345,1704836000026,-500.0,0.00041589,30]
[310964346,1704836000036,-670.96,0.00041589,30]
[310964347,1704836000045,-500.0,0.00041589,30]
[310964348,1704836000054,-992.5,0.00041589,30]
[310964349,1704836000063,-500.0,0.00041589,30]
[310964350,1704836000073,-500.0,0.00041589,30]
[310964351,1704836000083,-1379.24,0.00041589,30]
[310964352,1704836000092,-500.0,0.00041589,30]
[310964353,1704836000102,-891.81,0.00041589,30]
[310964354,1704836000112,-500.0,0.00041589,30]
[310964355,1704836000122,-3464.95,0.00041589,30]
[310964356,1704836000132,-500.0,0.00041589,30]
[310964357,1704836000142,-838.55,0.00041589,30]
[310964358,1704836000152,-660.81,0.00041589,30]
[310964359,1704836000162,-1525.96,0.00041589,30]
[310964360,1704836000175,-940.28,0.00041589,30]
[310964361,1704836000185,-797.09,0.00041589,30]
[310964362,1704836000194,-500.0,0.00041589,30]
[310964363,1704836000204,-500.0,0.00041589,30]
[310964364,1704836000213,-156.34910743,0.00041589,30]
[310964365,1704836000222,-500.0,0.00041589,30]
[310964366,1704836000232,-500.0,0.00041589,30]
[310964367,1704836000242,-500.0,0.00041589,30]
[310964368,1704836000252,-1021.78,0.00041589,30]
[310964369,1704836000261,-500.0,0.00041589,30]
[310964370,1704836000271,-500.0,0.00041589,30]
[310964371,1704836000281,-765.32,0.00041589,30]
[310964372,1704836000291,-624.2,0.00041589,30]
[310964373,1704836000301,-1106.38,0.00041589,30]
[310964374,1704836000310,-581.2,0.00041589,30]
[310964375,1704836000319,-1950.33,0.00041589,30]
[310964376,1704836000328,-500.0,0.00041589,30]
[310964377,1704836000338,-779.64,0.00041589,30]
[310964378,1704836000348,-166.97507571,0.00041589,30]
[310964379,1704836000358,-500.0,0.00041589,30]
[310964380,1704836000369,-500.0,0.00041589,30]
[310964381,1704836000379,-557.57,0.00041589,30]
[310964382,1704836000389,-742.05,0.00041589,30]
[310964383,1704836000399,-578.59,0.00041589,30]
[310964384,1704836000409,-500.0,0.00041589,30]
[310964385,1704836000423,-500.0,0.00041589,30]
[310964386,1704836000432,-500.0,0.00041589,30]
[310964387,1704836000442,-718.23,0.00041589,30]
[310964388,1704836000451,-500.0,0.00041589,30]
[310964389,1704836000461,-500.0,0.00041589,30]
[310964390,1704836000472,-500.0,0.00041589,30]
[310964391,1704836000482,-500.0,0.00041589,30]
[310964392,1704836000492,-500.0,0.00041589,30]
[310964393,1704836000502,-1681.49,0.00041589,30]
[310964394,1704836000512,-667.7,0.00041589,30]
[310964395,1704836000522,-500.0,0.00041589,30]
[310964396,1704836000532,-500.0,0.00041589,30]
[310964397,1704836000542,-500.0,0.00041589,30]
[310964398,1704836000552,-803.72,0.00041589,30]
[310964399,1704836000562,-691.09,0.00041589,30]
[310964400,1704836000572,-820.84,0.00041589,30]
[310964401,1704836000583,-500.0,0.00041589,30]
[310964402,1704836000593,-500.0,0.00041589,7]
[310964403,1704836000603,-500.0,0.00041589,30]
[310964404,1704836000613,-500.0,0.00041589,30]
[310964405,1704836000623,-612.42,0.00041589,30]
[310964406,1704836000633,-500.0,0.00041589,30]
[310964407,1704836000643,-500.0,0.00041589,30]
[310964408,1704836000652,-500.0,0.00041589,30]
[310964409,1704836000662,-500.0,0.00041589,30]
[310964410,1704836000676,-700.31,0.00041589,30]
[310964411,1704836000686,-500.0,0.00041589,30]
[310964412,1704836000696,-1173.84,0.00041589,30]
[310964413,1704836000705,-890.72,0.00041589,30]
[310964414,1704836000715,-519.17,0.00041589,30]
[310964415,1704836000725,-681.49,0.00041589,30]
[310964416,1704836000735,-627.48,0.00041589,30]
[310964417,1704836000745,-500.0,0.00041589,30]
[310964418,1704836000755,-1141.38,0.00041589,30]
[310964419,1704836000765,-1148.32,0.00041589,30]
[310964420,1704836000776,-596.45,0.00041589,30]
[310964421,1704836000786,-616.05,0.00041589,30]
[310964422,1704836000797,-500.0,0.00041589,30]
[310964423,1704836000807,-1154.54,0.00041589,30]
[310964424,1704836000823,-500.0,0.00041589,30]
[310964425,1704836000833,-500.0,0.00041589,30]
[310964426,1704836000844,-622.7,0.00041589,30]
[310964427,1704836000854,-1370.57,0.00041589,30]
[310964428,1704836000865,-724.45,0.00041589,30]
[310964429,1704836000875,-500.0,0.00041589,30]
[310964430,1704836000886,-555.95,0.00041589,30]
[310964431,1704836000896,-500.0,0.00041589,30]
[310964432,1704836000906,-677.52,0.00041589,30]
[310964433,1704836000920,-500.0,0.00041589,30]
[310964434,1704836000931,-500.0,0.00041589,30]
[310964435,1704836000941,-500.0,0.00041589,30]
[310964436,1704836000951,-500.0,0.00041589,30]
[310964437,1704836000962,-500.0,0.00041589,30]
[310964438,1704836000971,-854.7,0.00041589,30]
[310964439,1704836000983,-1132.67,0.00041589,30]
[310964440,1704836000992,-500.0,0.00041589,30]
[310964441,1704836001002,-347.61932157,0.00041589,30]
[310964442,1704836001012,-500.0,0.00041589,30]
[310964443,1704836001022,-352.11141897,0.00041589,30]
[310964444,1704836001033,-950.79,0.00041589,30]
[310964445,1704836001043,-500.0,0.00041589,30]
[310964446,1704836001054,-500.0,0.00041589,30]
[310964447,1704836001064,-1393.23,0.00041589,30]
[310964448,1704836001074,-500.0,0.00041589,30]
[310964449,1704836001085,-1054.09,0.00041589,30]
[310964450,1704836001096,-500.0,0.00041589,30]
[310964451,1704836001106,-500.0,0.00041589,30]
[310964452,1704836001116,-500.0,0.00041589,30]
[310964453,1704836001127,-982.92,0.00041589,30]
[310964454,1704836001138,-897.66,0.00041589,30]
[310964455,1704836001149,-612.78,0.00041589,30]
[310964456,1704836001160,-1038.74,0.00041589,30]
[310964457,1704836001177,-500.0,0.00041589,30]
[310964458,1704836001187,-500.0,0.00041589,30]
[310964459,1704836001197,-585.83,0.00041589,30]
[310964460,1704836001208,-1010.24,0.00041589,30]
[310964461,1704836001218,-625.2,0.00041589,30]
[310964462,1704836001229,-500.0,0.00041589,30]
[310964463,1704836001239,-1823.52,0.00041589,30]
[310964464,1704836001250,-450.93390295,0.00041589,30]
[310964465,1704836001261,-1503.9,0.00041589,30]
[310964466,1704836001271,-500.0,0.00041589,30]
[310964467,1704836001281,-975.74,0.00041589,30]
[310964468,1704836001292,-860.51,0.00041589,30]
[310964469,1704836001303,-693.44,0.00041589,30]
[310964470,1704836001314,-279.27606286,0.00041589,30]
[310964471,1704836001324,-812.42,0.00041589,30]
[310964472,1704836001334,-1252.33,0.00041589,30]
[310964473,1704836001344,-500.0,0.00041589,30]
[310964474,1704836001355,-1661.63,0.00041589,30]
[310964475,1704836001367,-835.41,0.00041589,30]
[310964476,1704836001378,-929.16,0.00041589,30]
[310964477,1704836001388,-500.0,0.00041589,30]
[310964478,1704836001400,-996.89,0.00041589,4]
[310964479,1704836001411,-500.0,0.00041589,30]
[310964480,1704836001424,-500.0,0.00041589,30]
[310964481,1704836001435,-500.0,0.00041589,30]
[310964482,1704836001445,-500.0,0.00041589,30]
[310964483,1704836001456,-500.0,0.00041589,30]
[310964484,1704836001467,-500.0,0.00041589,30]
[310964485,1704836001477,-1020.06,0.00041589,30]
[310964486,1704836001487,-500.0,0.00041589,30]
[310964487,1704836001497,-500.0,0.00041589,30]
[310964488,1704836001507,-955.18,0.00041589,30]
[310964489,1704836001518,-1186.89,0.00041589,30]
[310964490,1704836001528,-500.0,0.00041589,30]
[310964491,1704836001539,-500.0,0.00041589,2]
[310964492,1704836001549,-768.37,0.00041589,30]
[310964493,1704836001560,-636.74,0.00041589,30]
[310964494,1704836001571,-623.64,0.00041589,30]
[310964495,1704836001581,-500.0,0.00041589,30]
[310964496,1704836001592,-1030.22,0.00041589,30]
[310964497,1704836001603,-848.66,0.00041589,30]
[310964498,1704836001613,-500.0,0.00041589,30]
[310964499,1704836001623,-500.0,0.00041589,30]
[310964500,1704836001634,-1351.73,0.00041589,30]
[310964501,1704836001645,-555.34,0.00041589,30]
[310964502,1704836001655,-500.0,0.00041589,30]
[310964503,1704836001667,-1236.91,0.00041589,30]
[310964504,1704836001681,-551.84,0.00041589,30]
[310964505,1704836001691,-500.0,0.00041589,30]
[310964506,1704836001701,-500.0,0.00041589,30]
[310964507,1704836001711,-500.0,0.00041589,30]
[310964508,1704836001721,-500.0,0.00041589,30]
[310964509,1704836001731,-576.84,0.00041589,30]
[310964510,1704836001743,-1038.11,0.00041589,30]
[310964511,1704836001753,-1217.37,0.00041589,30]
[310964512,1704836001764,-500.0,0.00041589,30]
[310964513,1704836001774,-500.0,0.00041589,30]
[310964514,1704836001785,-500.0,0.00041589,30]
[310964515,1704836001796,-1358.69,0.00041589,30]
[310964516,1704836001806,-500.0,0.00041589,30]
[310964517,1704836001817,-500.0,0.00041589,30]
[310964518,1704836001828,-500.0,0.00041589,30]
[310964519,1704836001838,-500.0,0.00041589,30]
[310964520,1704836001849,-1307.04,0.00041589,30]
[310964521,1704836001859,-2306.18,0.00041589,30]
[310964522,1704836001870,-500.0,0.00041589,30]
[310964523,1704836001880,-500.0,0.00041589,30]
[310964524,1704836001890,-500.0,0.00041589,30]
[310964525,1704836001901,-1192.74,0.00041589,30]
[310964526,1704836001911,-500.0,0.00041589,30]
[310964527,1704836001926,-500.0,0.00041589,30]
[310964528,1704836001937,-500.0,0.00041589,30]
[310964529,1704836001947,-611.23,0.00041589,30]
[310964530,1704836001958,-907.9,0.00041589,30]
[310964531,1704836001968,-500.0,0.00041589,30]
[310964532,1704836001979,-996.68,0.00041589,30]
[310964533,1704836001989,-500.0,0.00041589,30]
[310964534,1704836002000,-500.0,0.00041589,30]
[310964535,1704836002011,-500.0,0.00041589,30]
[310964536,1704836002021,-627.06,0.00041589,30]
[310964537,1704836002032,-500.0,0.00041589,30]
[310964538,1704836002042,-500.0,0.00041589,30]
[310964539,1704836002053,-500.0,0.00041589,30]
[310964540,1704836002063,-500.0,0.00041589,30]
[310964541,1704836002073,-503.95,0.00041589,30]
[310964542,1704836002083,-500.0,0.00041589,30]
[310964543,1704836002094,-500.0,0.00041589,30]
[310964544,1704836002105,-968.8,0.00041589,30]
[310964545,1704836002115,-635.82,0.00041589,30]
[310964546,1704836002125,-1396.88,0.00041589,30]
[310964547,1704836002136,-1404.61,0.00041589,30]
[310964548,1704836002146,-525.21625819,0.00041589,30]
[310964549,1704836002156,-1231.44,0.00041589,30]
[310964550,1704836002171,-500.0,0.00041589,30]
[310964551,1704836002181,-554.78,0.00041589,30]
[310964552,1704836002191,-500.0,0.00041589,30]
[310964553,1704836002202,-1763.53,0.00041589,30]
[310964554,1704836002211,-500.0,0.00041589,30]
[310964555,1704836002222,-801.87,0.00041589,30]
[310964556,1704836002232,-500.0,0.00041589,30]
[310964557,1704836002243,-604.58,0.00041589,30]
[310964558,1704836002253,-1257.01,0.00041589,30]
[310964559,1704836002266,-500.0,0.00041589,30]
[310964560,1704836002277,-500.0,0.00041589,30]
[310964561,1704836002287,-1231.81,0.00041589,30]
[310964562,1704836002297,-500.0,0.00041589,30]
[310964563,1704836002307,-2010.91,0.00041589,30]
[310964564,1704836002318,-500.0,0.00041589,30]
[310964565,1704836002328,-1440.75,0.00041589,30]
[310964566,1704836002339,-896.14,0.00041589,30]
[310964567,1704836002349,-500.0,0.00041589,30]
[310964568,1704836002360,-1418.35,0.00041589,30]
[310964569,1704836002370,-403.47681032,0.00041589,30]
[310964570,1704836002381,-632.29,0.00041589,30]
[310964571,1704836002391,-808.1,0.00041589,30]
[310964572,1704836002402,-921.45,0.00041589,30]
[310964573,1704836002412,-500.0,0.00041589,30]
[310964574,1704836002425,-500.0,0.00041589,30]
[310964575,1704836002436,-1186.03,0.00041589,30]
[310964576,1704836002447,-1164.7,0.00041589,30]
[310964577,1704836002458,-640.28,0.00041589,30]
[310964578,1704836002469,-1027.4,0.00041589,30]
[310964579,1704836002480,-1105.56,0.00041589,30]
[310964580,1704836002491,-176.03195263,0.00041589,30]
[310964581,1704836002502,-602.96,0.00041589,30]
[310964582,1704836002513,-943.57,0.00041589,30]
[310964583,1704836002524,-500.0,0.00041589,30]
[310964584,1704836002535,-771.07,0.00041589,30]
[310964585,1704836002545,-500.0,0.00041589,30]
[310964586,1704836002555,-500.0,0.00041589,30]
[310964587,1704836002565,-1051.31,0.00041589,30]
[310964588,1704836002575,-500.0,0.00041589,30]
[310964589,1704836002586,-916.0,0.00041589,30]
[310964590,1704836002595,-500.0,0.00041589,5]
[310964591,1704836002605,-1267.33,0.00041589,30]
[310964592,1704836002617,-538.74,0.00041589,7]
[310964593,1704836002627,-701.87,0.00041589,30]
[310964594,1704836002637,-1238.29,0.00041589,30]
[310964595,1704836002648,-759.13,0.00041589,30]
[310964596,1704836002658,-500.0,0.00041589,30]
[310964597,1704836002672,-606.97,0.00041589,30]
[310964598,1704836002682,-1550.35,0.00041589,30]
[310964599,1704836002692,-500.0,0.00041589,30]
[310964600,1704836002702,-500.0,0.00041589,30]
[310964601,1704836002712,-639.29,0.00041589,30]
[310964602,1704836002722,-836.7,0.00041589,30]
[310964603,1704836002731,-667.99,0.00041589,30]
[310964604,1704836002741,-896.55,0.00041589,30]
[310964605,1704836002750,-500.0,0.00041589,30]
[310964606,1704836002760,-500.0,0.00041589,30]
[310964607,1704836002771,-1819.38,0.00041589,30]
[310964608,1704836002781,-1272.22,0.00041589,30]
[310964609,1704836002791,-548.7,0.00041589,30]
[310964610,1704836002801,-814.27,0.00041589,30]
[310964611,1704836002811,-536.47770869,0.00041589,30]
[310964612,1704836002822,-583.20755601,0.00041589,30]
[310964613,1704836003142,-689.54,0.00041589,30]
[310964614,1704836003152,-515.4,0.00041589,30]
[310964615,1704836003163,-1865.7,0.00041589,30]
[310964616,1704836003176,-2289.47,0.00041589,30]
[310964617,1704836003185,-634.39390691,0.00041589,30]
[310964618,1704836003194,-500.0,0.00041589,30]
[310964619,1704836003204,-500.0,0.00041589,30]
[310964620,1704836003213,-1130.6,0.00041589,30]
[310964621,1704836003224,-500.0,0.00041589,30]
[310964622,1704836003234,-1020.46,0.00041589,30]
[310964623,1704836003244,-500.0,0.00041589,30]
[310964624,1704836003254,-808.92,0.00041589,30]
[310964625,1704836003265,-765.7,0.00041589,30]
[310964626,1704836003275,-500.0,0.00041589,30]
[310964627,1704836003285,-265.15302729,0.00041589,30]
[310964628,1704836003295,-806.27,0.00041589,30]
[310964629,1704836003306,-1306.79,0.00041589,30]
[310964630,1704836003316,-500.0,0.00041589,30]
[310964631,1704836003326,-500.0,0.00041589,30]
[310964632,1704836003336,-500.0,0.00041589,30]
[310964633,1704836003346,-500.0,0.00041589,30]
[310964634,1704836003357,-500.0,0.00041589,30]
[310964635,1704836003368,-694.96,0.00041589,30]
[310964636,1704836003378,-1503.44,0.00041589,30]
[310964637,1704836003392,-500.0,0.00041589,30]
[310964638,1704836003430,-500.0,0.00041589,30]
[310964639,1704836003439,-500.0,0.00041589,30]
[310964640,1704836003449,-805.81,0.00041589,30]
[310964641,1704836003459,-500.0,0.00041589,30]
[310964642,1704836003469,-909.79,0.00041589,30]
[310964643,1704836003479,-1129.19,0.00041589,30]
[310964644,1704836003488,-500.0,0.00041589,30]
[310964645,1704836003497,-923.88,0.00041589,30]
[310964646,1704836003507,-611.47,0.00041589,30]
[310964647,1704836003516,-3103.78,0.00041589,30]
[310964648,1704836003526,-500.0,0.00041589,30]
[310964649,1704836003535,-500.0,0.00041589,30]
[310964650,1704836003545,-500.0,0.00041589,30]
[310964651,1704836003554,-500.0,0.00041589,30]
[310964652,1704836003564,-3251.04,0.00041589,30]
[310964653,1704836003573,-500.0,0.00041589,30]
[310964654,1704836003582,-500.0,0.00041589,30]
[310964655,1704836003591,-740.01,0.00041589,30]
[310964656,1704836003600,-176.05380394,0.00041589,30]
[310964657,1704836003609,-546.86,0.00041589,30]
[310964658,1704836003619,-366.40335428,0.00041589,30]
[310964659,1704836003628,-1698.45,0.00041589,30]
[310964660,1704836003637,-500.0,0.00041589,30]
[310964661,1704836003647,-500.0,0.00041589,30]
[310964662,1704836003656,-500.0,0.00041589,30]
[310964663,1704836003665,-309.51,0.00041589,30]
[310964664,1704836003680,-500.0,0.00041589,30]
[310964665,1704836003689,-500.0,0.00041589,30]
[310964666,1704836003698,-1031.59,0.00041589,30]
[310964667,1704836003707,-739.45,0.00041589,30]
[310964668,1704836003717,-500.0,0.00041589,30]
[310964669,1704836003726,-1341.58,0.00041589,30]
[310964670,1704836003735,-500.0,0.00041589,30]
[310964671,1704836003745,-500.0,0.00041589,30]
[310964672,1704836003755,-579.92,0.00041589,30]
[310964673,1704836003764,-962.12,0.00041589,30]